bitfinex/quotes_ETHUSD_20260109
["timestamp","ask_amount","ask_price","bid_price","bid_amount"]
[1767979994140,3.21181949,3113.5,3112.5,4.5798571]
[1767979994309,3.21181949,3113.5,3112.6,0.91071767]
[1767979994648,3.21245902,3113.7,3112.6,0.89996371]
[1767979994845,3.21243388,3113.7,3112.8,0.91071767]
[1767979996038,6.42406576,3113.7,3112.8,0.91071767]
[1767979997610,0.9718031,3113.3,3112.4,0.00081526]
[1767979997944,0.252,3113.3,3112.4,0.00081526]
[1767979998243,0.252,3113.3,3112.5,3.21278539]
[1767979998439,0.252,3113.3,3112.5,3.94660098]
[1767979999011,0.252,3113.3,3112.5,0.73381559]
[1767979999378,0.252,3113.3,3112.5,1.64453326]
[1767979999507,0.252,3113.3,3112.6,0.91071767]
[1767980000420,0.25000001,3113.3,3112.6,0.91071767]
[1767980000725,0.25000001,3113.3,3112.7,1.6443583]
[1767980001632,0.25000001,3113.3,3112.7,4.85690804]
[1767980002158,0.25000001,3113.3,3112.7,1.6443583]
[1767980002362,0.25000001,3113.3,3112.7,4.85698622]
[1767980002660,0.25000001,3113.3,3112.7,1.6443583]
[1767980002824,0.25000001,3113.3,3112.8,0.4857057]
[1767980003676,0.002802,3113.7,3112.9,4.12312015]
[1767980003826,0.9718031,3113.6,3112.6,0.91071767]
[1767980004158,0.9718031,3113.6,3112.9,3.21240181]
[1767980005061,0.96980311,3113.6,3112.9,3.21240181]
[1767980005361,0.96980311,3113.6,3113.0,0.64249319]
[1767980005564,0.9718031,3113.4,3112.4,0.00081526]
[1767980005730,0.9718031,3113.4,3112.4,0.25281526]
[1767980005926,0.9718031,3113.4,3112.5,6.4257028]
[1767980006459,0.9718031,3113.3,3112.5,3.2128514]
[1767980009265,0.9718031,3113.3,3112.4,0.00081526]
[1767980009431,3.21195365,3113.4,3112.5,0.91071767]
[1767980009730,4.18375675,3113.4,3112.5,0.91071767]
[1767980010133,0.9718031,3113.4,3112.5,0.91071767]
[1767980010563,3.211756,3113.6,3112.8,0.001]
[1767980010755,7.3953151,3113.6,3112.8,0.001]
[1767980011062,4.95017276,3113.6,3112.8,0.001]
[1767980011263,0.9718031,3113.5,3112.8,0.001]
[1767980011833,0.9718031,3113.2,3112.8,0.001]
[1767980012065,0.98782258,3113.1,3112.4,0.00081526]
[1767980013343,6.42467072,3113.0,3112.4,0.00081526]
[1767980013544,0.90183923,3112.6,3111.9,0.001]
[1767980014166,0.25280152,3112.7,3111.9,0.001]
[1767980015577,6.42549636,3112.6,3111.9,0.001]
[1767980015774,0.91785871,3112.4,3111.9,0.001]
[1767980015984,0.90183923,3112.4,3111.4,0.00080152]
[1767980016690,0.01601948,3112.3,3111.4,0.00080152]
[1767980016887,0.90183923,3111.9,3111.4,0.00080152]
[1767980017177,0.90183923,3111.7,3110.8,3.21453848]
[1767980017384,1.15383923,3111.7,3110.9,0.00857239]
[1767980017765,0.91785871,3111.6,3110.4,0.252]
[1767980018072,0.91785871,3111.6,3110.5,3.21485858]
[1767980018384,0.90183923,3111.4,3110.6,3.21481106]
[1767980018592,0.90183923,3111.4,3110.5,0.66819717]
[1767980018794,0.90183923,3111.4,3110.4,3.4669514]
[1767980018950,0.89983924,3111.4,3110.4,3.4669514]
[1767980019255,0.89983924,3111.4,3110.5,3.2149062]
[1767980019579,0.75973498,3111.5,3110.6,3.21480856]
[1767980019789,3.97367015,3111.5,3110.6,3.21480856]
[1767980020200,3.97367015,3111.5,3110.5,4.16715325]
[1767980020355,0.73636685,3111.4,3110.5,0.95226422]
[1767980020553,0.73636685,3111.4,3110.4,3.21501716]
[1767980020768,0.73636685,3111.4,3110.5,3.21488114]
[1767980021187,0.72034737,3111.4,3110.5,4.16714536]
[1767980021373,0.01601948,3111.6,3110.6,1.36897876]
[1767980021559,3.22984451,3111.6,3110.6,1.36897876]
[1767980021884,4.13168374,3111.6,3110.6,1.36897876]
[1767980022083,4.13168374,3111.6,3110.8,0.001]
[1767980022491,0.90183923,3111.5,3110.8,0.001]
[1767980022686,0.73455088,3111.4,3110.8,0.001]
[1767980022920,0.90183923,3111.3,3110.8,0.001]
[1767980023612,0.75057036,3111.4,3110.8,0.001]
[1767980024409,3.21409057,3111.3,3110.8,0.001]
[1767980024704,3.9645626,3111.4,3110.8,0.001]
[1767980024874,0.39645626,3111.3,3110.8,0.001]
[1767980027486,3.61055017,3111.3,3110.8,0.001]
[1767980028907,0.9821124,3111.6,3110.8,0.001]
[1767980029115,0.9821124,3111.2,3110.2,0.00080112]
[1767980029612,0.252,3111.1,3110.2,0.90957888]
[1767980029779,1.21809292,3111.1,3110.2,0.90957888]
[1767980030307,0.252,3111.1,3110.3,3.21510896]
[1767980030543,0.252,3111.1,3110.4,0.32159101]
[1767980030904,0.252,3111.1,3110.4,3.53659632]
[1767980031267,0.9821124,3111.6,3110.5,0.90877776]
[1767980031425,0.252,3111.5,3110.5,0.90877776]
[1767980032211,0.96609292,3111.4,3110.4,0.32159101]
[1767980032557,0.9821124,3111.3,3110.4,3.53655944]
[1767980033059,4.19630037,3111.3,3110.4,0.32159101]
[1767980033546,4.19630037,3111.3,3110.4,3.53658035]
[1767980034157,3.21418797,3111.3,3110.4,1.2681042]
[1767980034345,3.21418797,3111.3,3110.4,0.94651319]
[1767980034534,4.12161555,3111.3,3110.4,0.94651319]
[1767980034734,4.12161555,3111.3,3110.7,0.001]
[1767980035346,3.46589115,3111.5,3110.7,0.001]
[1767980035845,6.6797823,3111.5,3110.7,0.001]
[1767980036019,7.44010524,3111.5,3110.7,0.001]
[1767980036546,4.22621409,3111.5,3110.7,0.001]
[1767980037508,7.44010524,3111.5,3110.7,0.001]
[1767980037976,0.252,3111.5,3110.7,0.94751319]
[1767980038479,3.4658932,3111.5,3110.7,0.94751319]
[1767980040275,0.252,3111.5,3110.7,0.94751319]
[1767980040781,0.90742758,3111.4,3110.7,3.21570028]
[1767980040993,3.46592215,3111.5,3110.8,0.32157003]
[1767980041478,3.46592215,3111.5,3110.7,0.001]
[1767980043082,6.6798443,3111.5,3110.7,0.001]
[1767980043308,0.91508778,3111.0,3110.2,0.00080112]
[1767980043601,0.93110726,3110.5,3109.6,3.21579191]
[1767980043743,0.93110726,3110.5,3109.5,3.21587499]
[1767980043947,0.93110726,3110.5,3109.3,4.21448353]
[1767980044183,7.34595594,3110.0,3109.3,0.00081526]
[1767980044487,0.91508778,3110.0,3109.3,0.00081526]
[1767980044670,0.01601948,3110.1,3109.3,0.00081526]
[1767980044981,0.93110726,3110.3,3109.3,0.00081526]
[1767980045299,0.16637033,3111.4,3110.3,0.99758949]
[1767980045505,0.16637033,3111.4,3110.4,0.87431694]
[1767980045703,0.91508778,3111.7,3110.4,0.253]
[1767980045872,3.21384635,3111.6,3110.4,0.253]
[1767980046067,3.21384635,3111.6,3110.3,0.99758949]
[1767980046068,3.21384635,3111.6,3110.3,1.25058949]
[1767980046303,3.21384635,3111.6,3110.4,6.43004114]
[1767980046473,3.21384635,3111.6,3110.7,0.001]
[1767980046676,0.002,3111.1,3110.7,0.001]
[1767980046872,3.21384635,3111.6,3110.7,0.001]
[1767980047189,0.002,3111.4,3110.7,0.001]
[1767980048903,0.91508778,3111.3,3110.7,0.001]
[1767980049093,0.002,3111.4,3110.7,0.001]
[1767980050180,0.91708778,3111.4,3110.7,0.001]
[1767980050380,0.00080152,3111.8,3110.7,0.001]
[1767980050802,0.9158893,3111.8,3110.7,0.001]
[1767980051979,0.9158893,3111.8,3110.8,0.253]
[1767980052707,0.9158893,3111.8,3110.7,0.001]
[1767980052708,0.91508778,3111.7,3110.7,0.254]
[1767980052913,0.91508778,3111.6,3110.7,0.001]
[1767980054082,0.252,3111.7,3110.7,0.001]
[1767980054317,1.16708778,3111.7,3110.7,0.001]
[1767980054484,0.252,3111.7,3110.8,3.21460717]
[1767980055388,0.2308326,3111.7,3110.8,3.21460717]
[1767980055919,0.2308326,3111.7,3110.9,0.74278527]
[1767980056081,3.44451241,3111.7,3110.7,3.21566035]
[1767980057037,3.44451241,3111.7,3110.7,0.001]
[1767980058440,0.002,3111.4,3110.7,0.001]
[1767980059495,0.91708778,3111.4,3110.2,0.0008012]
[1767980059993,0.91708778,3111.4,3110.2,3.21602348]
[1767980060214,0.91708778,3111.4,3110.2,0.0008012]
[1767980062616,0.91508778,3111.2,3110.2,0.0008012]
[1767980062824,1.90141467,3111.1,3110.2,0.0008012]
[1767980063317,0.91508778,3111.0,3110.2,0.0008012]
[1767980064707,3.21450384,3110.9,3110.2,0.0008012]
[1767980064931,4.12959162,3110.9,3110.2,0.0008012]
[1767980065430,0.91508778,3110.8,3110.2,0.0008012]
[1767980065597,0.73440955,3110.7,3110.2,0.0008012]
[1767980066620,3.94919922,3110.7,3110.2,0.0008012]
[1767980068218,0.73440955,3110.7,3110.2,0.0008012]
[1767980068715,3.94918245,3110.7,3110.2,0.0008012]
[1767980070155,0.252,3110.8,3110.2,0.99839069]
[1767980070449,0.252,3110.8,3110.5,0.001]
[1767980071015,3.46661662,3110.8,3110.5,0.001]
[1767980071565,0.252,3110.8,3110.5,0.001]
[1767980071738,3.46665351,3110.8,3110.5,0.001]
[1767980071929,0.66811582,3110.7,3110.5,0.001]
[1767980073358,0.96603166,3110.5,3109.5,0.95819832]
[1767980074357,0.96603166,3110.5,3109.6,0.95819832]
[1767980074658,3.21561506,3110.6,3109.6,0.95819832]
[1767980075231,7.39646058,3110.6,3109.6,0.95819832]
[1767980075551,1.7724893,3110.5,3109.5,3.2159409]
[1767980075758,1.7724893,3110.5,3109.6,4.17404307]
[1767980077232,1.7724893,3110.5,3109.6,0.95819832]
[1767980077434,3.21502057,3110.4,3109.6,0.95819832]
[1767980078122,0.80645764,3110.5,3109.7,0.95819832]
[1767980078325,3.21565935,3110.6,3109.7,1.69718578]
[1767980079054,0.96603166,3110.5,3109.7,0.73898746]
[1767980079348,0.96603166,3110.5,3109.6,3.21582855]
[1767980079556,3.21502057,3110.4,3109.5,0.95819832]
[1767980080443,6.43004114,3110.4,3109.5,0.95819832]
[1767980080633,0.96603166,3110.2,3109.3,0.00081526]
[1767980082054,7.39669304,3110.1,3109.3,0.00081526]
[1767980082373,0.96683326,3109.6,3108.7,0.95819832]
[1767980082578,0.96683326,3109.6,3108.7,4.17491159]
[1767980082866,0.0008016,3109.6,3108.8,4.17480811]
[1767980083258,0.0008016,3109.6,3108.8,0.95819832]
[1767980084174,0.0008016,3109.6,3108.8,4.17481424]
[1767980084479,0.0008016,3109.6,3108.9,0.73915583]
[1767980086072,6.67138979,3109.7,3109.3,0.00081607]
[1767980087132,3.45561366,3109.7,3109.3,0.00081607]
[1767980087333,0.96603166,3109.6,3109.3,0.00081607]
[1767980087746,0.96683334,3109.6,3108.7,3.21673875]
[1767980087975,0.96683334,3109.6,3108.8,0.32167388]
[1767980088180,3.21595111,3109.5,3108.8,1.2798722]
[1767980088377,3.21595111,3109.5,3108.8,0.95819832]
[1767980088568,3.21595111,3109.5,3108.6,4.17503026]
[1767980089144,4.18648889,3109.5,3108.6,4.17503026]
[1767980090383,0.00080168,3109.6,3108.7,7.38612097]
[1767980090594,3.21665312,3109.6,3108.7,4.16934226]
[1767980090799,3.21665312,3109.6,3108.7,4.90796269]
[1767980091907,4.1871909,3109.6,3108.7,1.69118398]
[1767980092380,7.40304234,3109.6,3108.7,1.69118398]
[1767980092578,0.97053778,3109.5,3108.7,0.73862043]
[1767980092765,0.97053778,3109.5,3108.5,0.95256355]
[1767980093174,0.97053778,3109.1,3108.3,3.21797731]
[1767980093413,0.252,3109.2,3108.4,3.21708789]
[1767980093724,1.22053779,3109.2,3108.3,0.95336563]
[1767980093883,1.22053779,3109.2,3108.3,0.00080208]
[1767980093884,0.97053778,3109.1,3108.3,0.00080208]
[1767980094087,0.97053778,3109.0,3108.3,0.00080208]
[1767980094799,8.80917989,3109.1,3108.3,0.00080208]
[1767980094991,2.29512715,3109.1,3108.3,0.00080208]
[1767980095195,0.97053778,3109.1,3109.0,0.001]
[1767980095519,0.97053778,3109.0,3108.3,0.00080208]
[1767980095721,0.97053778,3108.7,3108.3,0.00080208]
[1767980096027,5.59276743,3108.8,3108.3,0.00080208]
[1767980096028,0.002,3109.3,3108.3,0.95336563]
[1767980096173,4.18872119,3109.3,3108.3,0.95336563]
[1767980096371,4.63279331,3109.3,3108.3,0.95336563]
[1767980096808,0.97053778,3109.2,3108.3,3.21793103]
[1767980099317,4.18686902,3109.2,3108.3,3.21793103]
[1767980099897,0.002,3109.3,3108.8,5.59276743]
[1767980100130,0.002,3109.3,3108.8,6.54533098]
[1767980100344,0.002,3109.3,3108.8,7.19986408]
[1767980100504,0.002,3109.3,3108.9,0.95256355]
[1767980100707,0.00081607,3109.7,3109.3,0.95256355]
[1767980100923,4.18563012,3110.4,3109.5,5.59276743]
[1767980100924,4.43758559,3110.4,3109.5,5.59276743]
[1767980101199,1.22253778,3110.4,3109.3,0.95338043]
[1767980101404,3.21519532,3110.3,3109.3,0.95338043]
[1767980101604,6.43040205,3110.3,3109.4,0.41704233]
[1767980102006,6.43040205,3110.3,3109.3,0.95338043]
[1767980102201,6.43040205,3110.3,3109.4,0.95256355]
[1767980104434,7.41209938,3110.3,3109.3,0.00081688]
[1767980104601,4.19689265,3110.3,3109.3,4.11963366]
[1767980104804,0.252,3110.4,3109.5,0.90266232]
[1767980105026,3.46702207,3110.4,3109.6,1.31453392]
[1767980105340,0.252,3110.3,3109.6,1.31453392]
[1767980106045,0.002,3110.5,3109.7,0.90266232]
[1767980106237,3.21697498,3110.5,3109.7,0.90266232]
[1767980106428,3.21697498,3110.5,3109.6,0.4118716]
[1767980106629,0.98169733,3110.4,3109.3,0.00081688]
[1767980108026,0.002,3109.9,3109.3,0.00081688]
[1767980111171,0.98369733,3109.9,3109.3,0.00081688]
[1767980112147,3.21564087,3109.8,3109.3,0.00081688]
[1767980112552,0.98251421,3109.7,3109.2,0.00080176]
[1767980112862,0.98249909,3109.6,3109.0,0.001]
[1767980113073,0.98169733,3109.4,3109.0,0.001]
[1767980113372,0.98169733,3109.4,3108.4,3.21707838]
[1767980113783,0.98010538,3109.4,3108.3,0.00080208]
[1767980113936,0.99612486,3109.4,3108.3,0.00080208]
[1767980114136,0.98169733,3109.2,3108.3,0.00080208]
[1767980114339,0.98169733,3109.0,3108.3,0.00080208]
[1767980114568,0.252,3108.9,3108.3,0.00080208]
[1767980114776,0.98169733,3108.8,3108.3,0.00080208]
[1767980116939,4.19838232,3108.8,3108.3,0.00080208]
[1767980117173,0.98169733,3108.8,3108.3,0.00080208]
[1767980117960,3.46862319,3108.9,3108.3,0.00080208]
[1767980118183,0.34686232,3108.8,3108.3,0.00080208]
[1767980119274,0.24303937,3108.9,3108.3,0.00080208]
[1767980119591,0.25280176,3109.6,3108.3,0.93563632]
[1767980119744,0.25280176,3109.6,3108.3,0.9034644]
[1767980120237,0.25280176,3109.6,3108.6,0.001]
[1767980120437,0.25280176,3109.6,3108.7,0.90266232]
[1767980121053,1.23449909,3109.6,3108.6,0.001]
[1767980121257,0.98169733,3109.5,3108.6,0.73478407]
[1767980122462,0.98169733,3109.5,3108.7,6.43355742]
[1767980122664,0.25280176,3109.6,3108.8,0.90266232]
[1767980122885,0.00080176,3109.6,3108.8,0.90266232]
[1767980124473,0.00080176,3109.6,3108.9,6.43314354]
[1767980124679,0.00080176,3109.6,3109.0,0.73358059]
[1767980124899,0.00080176,3109.6,3109.1,0.90266232]
[1767980126598,0.00080176,3109.6,3109.2,3.21626141]
[1767980127788,0.98249909,3109.6,3108.6,0.001]
[1767980127991,0.98169733,3109.4,3108.6,0.001]
[1767980128226,0.98169733,3109.2,3107.8,3.21763522]
[1767980128514,0.98169733,3109.2,3107.7,4.12119992]
[1767980128673,0.26801948,3109.3,3107.8,1.31478231]
[1767980128674,0.00080208,3108.7,3107.8,1.31478231]
[1767980129007,0.25280208,3108.7,3107.8,1.31478231]
[1767980129194,0.25280208,3108.7,3107.9,0.90266232]
[1767980130175,0.25080208,3108.7,3108.3,0.00080216]
[1767980130594,3.21688219,3108.6,3108.3,0.00080216]
[1767980130790,3.21688219,3108.6,3107.8,1.31478231]
[1767980130996,3.21688219,3108.6,3107.8,0.41211999]
[1767980131316,3.21688219,3108.6,3107.7,0.00080128]
[1767980131317,0.98169733,3108.5,3107.7,0.00080128]
[1767980132606,7.41587567,3108.4,3107.7,0.00080128]
[1767980133394,0.97559879,3108.3,3107.7,0.00080128]
[1767980134110,0.00080128,3108.1,3107.2,3.21828165]
[1767980134272,0.00080128,3108.1,3107.3,0.96821471]
[1767980134478,0.25380128,3108.1,3107.3,0.96821471]
[1767980134877,0.25380128,3108.1,3107.4,6.43624894]
[1767980136608,0.00080128,3108.1,3107.5,0.96821471]
[1767980136810,0.25380216,3108.7,3107.9,0.96821471]
[1767980136986,0.60084666,3108.7,3107.9,0.96821471]
[1767980137186,0.00080216,3108.7,3107.9,0.96821471]
[1767980139111,0.00080216,3108.7,3108.1,0.96821471]
[1767980139994,0.002,3109.3,3108.3,0.96901695]
[1767980140179,3.21816981,3109.3,3108.3,0.96901695]
[1767980140380,0.97559879,3109.2,3108.3,0.00080224]
[1767980140576,0.97559879,3109.2,3107.7,0.00080136]
[1767980140792,0.97559879,3108.6,3107.7,0.00080136]
[1767980141415,4.19253702,3108.6,3107.7,0.00080136]
[1767980141611,0.44463393,3108.5,3107.7,0.00080136]
[1767980143610,4.19256874,3108.6,3107.7,0.00080136]
[1767980144213,3.21762513,3108.7,3107.8,0.96821471]
[1767980144382,3.47062513,3108.7,3107.8,0.96821471]
[1767980145096,0.002,3108.2,3107.8,0.96821471]
[1767980145919,0.002,3108.2,3107.9,3.21760674]
[1767980146283,0.002,3108.2,3107.9,3.95814352]
[1767980146814,0.002,3108.2,3107.9,0.74053678]
[1767980147721,0.002,3108.2,3107.8,3.2176712]
[1767980147905,0.002,3108.2,3107.7,3.2195489]
[1767980148086,0.002,3108.2,3107.8,3.21770176]
[1767980150126,0.002,3108.2,3107.7,0.00180136]
[1767980153493,4.44622806,3108.7,3107.7,0.00180136]
[1767980153693,0.7662927,3108.6,3107.7,0.98149791]
[1767980154000,0.00080224,3108.7,3107.7,0.98149791]
[1767980154826,0.00080224,3108.7,3107.9,0.97969655]
[1767980156831,0.00080224,3108.7,3108.0,3.21750321]
[1767980157126,0.00080224,3108.7,3107.8,3.2176147]
[1767980157332,0.00080224,3108.7,3108.0,0.001]
[1767980157518,0.002,3108.4,3108.3,0.00080232]
[1767980158803,0.94568386,3108.4,3108.0,0.001]
[1767980160530,0.002,3108.4,3108.0,0.001]
[1767980161248,0.94568386,3108.4,3108.0,0.001]
[1767980161543,0.94568386,3108.4,3107.1,0.00080104]
[1767980161544,0.00080136,3108.1,3107.1,0.00080104]
[1767980161843,0.25380136,3108.1,3107.1,0.98049759]
[1767980162426,0.25380136,3108.1,3107.1,4.19891445]
[1767980162614,0.94368386,3108.0,3107.1,0.00080104]
[1767980163343,3.21760674,3107.9,3107.1,0.00080104]
[1767980163549,0.32176067,3107.8,3107.1,0.00080104]
[1767980164909,0.32176067,3107.8,3107.1,0.93670462]
[1767980165143,0.25380136,3108.1,3107.1,0.93670462]
[1767980165756,0.25380136,3108.1,3107.2,7.3725668]
[1767980166134,0.25380136,3108.1,3107.2,4.15423519]
[1767980166647,0.96826281,3108.0,3107.1,0.00080104]
[1767980166847,0.96826281,3108.0,3107.1,3.21917775]
[1767980167051,0.76569245,3107.9,3107.1,3.21917775]
[1767980167343,0.76569245,3107.9,3107.1,4.15508133]
[1767980167547,0.25380136,3108.1,3107.3,4.15413162]
[1767980167746,0.25380136,3108.1,3107.4,0.93590358]
[1767980168059,0.00080136,3108.1,3107.4,0.93590358]
[1767980168546,4.18651681,3108.1,3107.1,3.21914379]
[1767980168758,0.96826281,3108.0,3107.2,3.21829996]
[1767980168915,1.38691449,3108.0,3107.2,3.21829996]
[1767980169314,0.41865168,3108.0,3107.1,0.93670462]
[1767980169543,0.00080136,3108.1,3107.2,7.37251053]
[1767980169918,0.00080136,3108.1,3107.3,0.93590358]
[1767980170550,0.00080136,3108.1,3107.5,0.001]
[1767980170721,0.002,3107.8,3107.5,0.001]
[1767980172415,0.97026281,3107.8,3107.1,0.00080104]
[1767980173738,0.00080104,3107.5,3106.5,0.0008056]
[1767980174053,0.96826281,3107.3,3106.5,0.0008056]
[1767980175950,6.43666322,3107.2,3106.5,0.0008056]
[1767980176117,0.96826281,3107.1,3106.5,0.0008056]
[1767980176724,6.43666322,3107.2,3106.5,0.0008056]
[1767980177136,3.21833161,3107.2,3106.5,0.0008056]
[1767980177332,0.74048502,3107.1,3106.5,0.0008056]
[1767980177840,1.70874783,3107.1,3106.5,0.0008056]
[1767980178539,3.21853878,3107.0,3106.5,0.0008056]
[1767980178747,0.253,3106.9,3106.5,0.0008056]
[1767980180172,0.253,3106.8,3106.5,0.0008056]
[1767980180373,3.21884958,3106.7,3106.1,0.00080128]
[1767980180926,6.43769916,3106.7,3106.1,0.00080128]
[1767980181237,7.10684964,3106.7,3106.1,0.00080128]
[1767980183569,7.10684964,3106.7,3106.4,0.001]
[1767980183891,0.66915048,3106.7,3106.1,0.00080128]
[1767980184088,4.44006272,3106.8,3106.1,0.00080128]
[1767980184287,3.47179991,3106.8,3106.1,0.00080128]
[1767980184436,0.253,3106.7,3106.1,0.00080128]
[1767980184785,3.47187658,3106.7,3106.1,0.00080128]
[1767980185534,1.22126281,3106.6,3106.1,0.00080128]
[1767980185971,0.253,3106.6,3106.1,0.00080128]
[1767980186849,3.47198511,3106.6,3106.1,0.00080128]
[1767980187265,7.40623303,3106.6,3106.1,0.00080128]
[1767980187572,0.96826281,3106.1,3104.6,1.10471661]
[1767980187791,0.96826281,3105.9,3104.6,0.93670518]
[1767980188072,0.253,3105.8,3104.6,0.93670518]
[1767980188243,0.253,3105.7,3104.6,0.93670518]
[1767980188445,0.96826281,3106.3,3104.6,0.93670518]
[1767980188446,0.253,3105.6,3104.6,0.93670518]
[1767980188644,0.253,3105.6,3104.6,4.15768206]
[1767980188858,0.253,3105.6,3104.7,3.22089705]
[1767980189055,0.253,3105.6,3104.7,7.37772374]
[1767980189264,0.253,3105.6,3104.7,4.15680063]
[1767980189634,0.253,3105.6,3104.9,0.93590358]
[1767980190035,0.251,3105.6,3104.9,0.93590358]
[1767980190232,3.21982003,3105.8,3105.2,0.93670526]
[1767980190437,0.253,3105.7,3105.2,0.93670526]
[1767980191072,3.21991301,3105.7,3105.2,0.00080168]
[1767980191241,3.47291301,3105.7,3105.2,0.00080168]
[1767980191440,8.33035118,3105.7,3105.2,0.00080168]
[1767980191637,0.96906449,3105.6,3104.6,4.15767749]
[1767980191949,0.00080168,3105.6,3104.9,3.22063521]
[1767980192151,0.00080168,3105.6,3104.8,4.15665381]
[1767980193045,0.00080168,3105.6,3104.9,3.22071143]
[1767980193341,0.00080168,3105.6,3105.0,1.33626393]
[1767980194969,0.00080168,3105.6,3105.0,0.4156615]
[1767980195569,3.46984094,3105.7,3105.1,0.002]
[1767980195773,3.46984094,3105.7,3105.2,0.00080176]
[1767980196764,7.68652536,3105.7,3105.1,0.002]
[1767980197085,0.99758413,3105.6,3105.1,0.002]
[1767980197447,1.01360361,3105.6,3105.1,0.002]
[1767980197645,0.99678237,3105.4,3104.8,0.002]
[1767980197845,0.99678237,3105.4,3104.6,0.0008016]
[1767980198191,0.0008016,3105.0,3104.4,0.92060243]
[1767980199771,0.0008016,3105.0,3104.5,7.36286365]
[1767980201949,0.0008016,3105.0,3104.3,0.73642748]
[1767980203677,0.0008016,3105.0,3104.3,3.95770053]
[1767980203884,0.99758397,3105.0,3104.2,0.00080144]
[1767980204106,0.99758381,3104.6,3104.0,0.0008016]
[1767980204262,0.99758381,3104.6,3104.0,3.22238291]
[1767980204263,0.253,3104.5,3104.0,3.22238291]
[1767980204597,0.251,3104.5,3104.0,0.0008016]
[1767980205243,0.00080144,3104.6,3104.0,0.32306166]
[1767980205448,0.00080144,3104.6,3104.2,3.22138887]
[1767980205656,0.25380144,3104.6,3104.0,0.0008016]
[1767980207285,4.21824602,3105.0,3104.3,0.92060243]
[1767980207286,0.0008016,3105.0,3104.3,0.92060243]
[1767980207697,0.0008016,3105.0,3104.2,0.00080152]
[1767980207698,0.00080176,3105.6,3104.7,0.92060243]
[1767980208046,0.99758365,3106.5,3105.3,0.92060243]
[1767980208256,0.00080128,3106.5,3105.3,0.92060243]
[1767980208683,0.253,3106.4,3105.3,0.92060243]
[1767980208888,0.00080128,3106.5,3105.3,0.92060243]
[1767980209398,0.0008056,3106.9,3106.2,0.9364609]
[1767980209759,0.0008056,3106.9,3106.2,4.15580378]
[1767980209956,0.0008056,3106.9,3106.3,0.41566051]
[1767980210769,0.0008056,3106.9,3106.3,1.35212141]
[1767980210971,0.0008056,3106.9,3106.4,0.9364609]
[1767980211956,0.0008056,3106.9,3106.5,7.37457452]
[1767980212355,0.00080104,3107.5,3106.6,0.9364609]
[1767980212665,0.00080104,3107.5,3106.7,1.99590467]
[1767980213267,0.00080104,3107.5,3106.7,1.05944377]
[1767980213466,0.00080104,3107.5,3106.5,7.37538092]
[1767980213771,0.00080104,3107.5,3106.6,0.9364609]
[1767980213959,0.00080104,3107.5,3106.7,6.43769916]
[1767980214487,0.00080104,3107.5,3106.7,7.37416006]
[1767980214712,0.00080104,3107.5,3106.8,0.9364609]
[1767980214864,0.00080104,3107.5,3106.7,6.43769916]
[1767980214865,0.00080104,3107.5,3107.0,0.9364609]
[1767980215207,0.002,3107.8,3107.1,0.00080112]
[1767980215797,0.002,3107.8,3107.1,0.93726202]
[1767980216097,0.002,3107.8,3107.3,0.9364609]
[1767980216256,0.00280136,3108.1,3107.3,0.9364609]
[1767980216458,0.00280136,3108.1,3107.4,1.67377331]
[1767980217579,0.00280136,3108.1,3107.4,0.73731241]
[1767980217792,0.00280136,3108.1,3107.2,3.21833161]
[1767980217996,0.00280136,3108.1,3107.1,3.2192227]
[1767980219365,0.00280136,3108.1,3107.1,6.43765789]
[1767980219704,0.253,3108.0,3107.1,6.43765789]
[1767980220064,0.253,3108.0,3107.1,7.37411879]
[1767980220398,0.00280136,3108.1,3107.3,0.9364609]
[1767980221600,0.002,3108.4,3107.7,0.93726234]
[1767980221923,0.00080232,3108.7,3107.7,0.00080144]
[1767980222103,0.90133759,3108.7,3107.7,6.43642906]
[1767980222464,0.00080232,3108.7,3107.7,7.37288996]
[1767980222789,0.00080232,3108.7,3107.8,0.762589]
[1767980222965,0.00080232,3108.7,3107.8,1.73774038]
[1767980223300,0.00080232,3108.7,3107.9,0.97515138]
[1767980223461,0.00080232,3108.7,3107.8,0.762589]
[1767980223870,0.00080232,3108.7,3107.7,0.00080144]
[1767980224080,0.00080232,3108.7,3107.7,0.97595282]
[1767980224501,0.25380232,3108.7,3107.7,0.97595282]
[1767980224867,0.00080232,3108.7,3107.7,0.97595282]
[1767980225176,0.002,3109.3,3108.3,0.0008024]
[1767980225502,0.002,3109.3,3108.3,0.97595378]
[1767980226064,0.002,3109.3,3108.5,0.97515138]
[1767980226262,0.002,3109.3,3108.4,6.43417834]
[1767980226263,0.002,3109.3,3108.7,0.97515138]
[1767980227111,0.002,3109.3,3108.6,0.74093297]
[1767980227580,0.002,3109.3,3108.4,3.21708917]
[1767980227783,0.002,3109.3,3108.5,0.97515138]
[1767980228162,0.002,3109.3,3108.6,7.40891576]
[1767980228364,0.002,3109.3,3108.6,4.19203357]
[1767980228579,0.002,3109.3,3108.6,7.40891576]
[1767980228801,0.002,3109.3,3108.7,0.74089158]
[1767980229002,0.002,3109.3,3108.8,0.97515138]
[1767980229302,0.00081688,3109.7,3109.2,0.00080184]
[1767980230485,0.002,3110.2,3109.2,0.97595322]
[1767980230690,0.002,3110.2,3109.4,0.97515138]
[1767980231598,0.0008012,3110.6,3109.4,0.97515138]
[1767980232000,0.002,3110.9,3110.2,0.00080128]
[1767980232179,0.002,3110.9,3110.2,0.97595266]
[1767980232378,0.002,3110.9,3110.2,0.00080128]
[1767980232575,0.002,3110.9,3110.2,0.32241448]
[1767980232877,0.95405705,3110.5,3109.4,3.21604833]
[1767980233112,0.253,3110.4,3109.3,0.97596907]
[1767980233978,0.253,3110.4,3109.6,3.21577955]
[1767980234808,0.00080128,3110.6,3109.5,0.97515138]
[1767980235384,0.002,3110.1,3109.5,0.97515138]
[1767980235586,3.2156519,3110.6,3109.6,0.74072486]
[1767980235795,0.002,3110.4,3109.4,6.43209719]
[1767980236883,0.002,3110.4,3109.4,0.97515138]
[1767980238916,0.002,3110.4,3109.5,3.21595111]
[1767980239105,0.002,3110.4,3109.5,7.4070536]
[1767980239310,0.002,3110.4,3109.6,1.71585674]
[1767980239822,0.002,3110.4,3109.7,0.97515138]
[1767980240025,0.00080128,3110.6,3109.7,0.97515138]
[1767980241121,0.00080128,3110.6,3109.8,7.40643312]
[1767980241309,0.00080128,3110.6,3109.9,0.97515138]
[1767980241513,0.00080128,3110.6,3110.0,1.71579469]
[1767980241838,0.00080128,3110.6,3110.0,0.74064331]
[1767980242321,0.002,3110.9,3110.2,0.00080136]
[1767980242821,0.002,3110.9,3110.2,0.97595274]